bitfinex/quotes_BTCUSD_20250825
["timestamp","ask_amount","ask_price","bid_price","bid_amount"]
[1756094451873,1.68338893,113140.0,113130.0,0.0006965]
[1756094452607,1.67727221,113140.0,113130.0,0.0006965]
[1756094452818,1.68347596,113140.0,113130.0,0.0006965]
[1756094453558,1.68347525,113140.0,113130.0,0.0006965]
[1756094455553,1.54576427,113140.0,113130.0,1e-08]
[1756094455758,1.71339383,113140.0,113130.0,1e-08]
[1756094458350,1.71327383,113140.0,113130.0,1e-08]
[1756094458757,1.71319383,113140.0,113130.0,1e-08]
[1756094458973,1.57235074,113140.0,113130.0,1e-08]
[1756094459214,1.72703496,113140.0,113130.0,1e-08]
[1756094459747,1.57235496,113140.0,113130.0,1e-08]
[1756094459982,1.72703496,113140.0,113130.0,1e-08]
[1756094460624,1.57235496,113140.0,113130.0,1e-08]
[1756094460824,1.72695496,113140.0,113130.0,1e-08]
[1756094461460,1.56621993,113140.0,113130.0,1e-08]
[1756094461837,1.68297383,113140.0,113130.0,1e-08]
[1756094462504,1.76984474,113140.0,113130.0,1e-08]
[1756094462726,1.75600783,113140.0,113130.0,1e-08]
[1756094464819,1.66913818,113140.0,113130.0,1e-08]
[1756094465482,1.68801877,113140.0,113130.0,1e-08]
[1756094465927,1.70185561,113140.0,113130.0,1e-08]
[1756094468422,1.54721561,113140.0,113130.0,1e-08]
[1756094468631,1.54721561,113140.0,113130.0,0.00195001]
[1756094468838,1.69659561,113140.0,113130.0,0.00195001]
[1756094469047,1.54215561,113140.0,113130.0,0.00195001]
[1756094469259,1.69659561,113140.0,113130.0,0.00195001]
[1756094469466,1.69873561,113140.0,113130.0,0.00195001]
[1756094469692,1.69659561,113140.0,113130.0,0.00195001]
[1756094469902,1.70194561,113140.0,113130.0,0.00195001]
[1756094470099,1.70194561,113140.0,113130.0,1e-08]
[1756094470944,0.8153297,113140.0,113130.0,0.00208001]
[1756094471138,1.42001636,113140.0,113130.0,0.00514001]
[1756094471338,1.2520294,113140.0,113130.0,0.00514001]
[1756094472039,0.34981167,113140.0,113130.0,0.00514001]
[1756094472240,1.2520294,113140.0,113130.0,0.00514001]
[1756094472455,1.5920294,113140.0,113130.0,0.00514001]
[1756094472899,1.2520294,113140.0,113130.0,0.00514001]
[1756094473080,1.2500294,113140.0,113130.0,0.00514001]
[1756094473284,1.0953894,113140.0,113130.0,0.00514001]
[1756094473532,1.07604363,113140.0,113130.0,0.00514001]
[1756094473907,1.07504363,113140.0,113130.0,0.00514001]
[1756094474111,1.41504363,113140.0,113130.0,0.00714001]
[1756094474719,1.41404363,113140.0,113130.0,0.00714001]
[1756094475123,1.41404363,113140.0,113130.0,0.00814001]
[1756094475301,1.3976441,113140.0,113130.0,0.00814001]
[1756094476182,1.3976441,113140.0,113130.0,0.09502476]
[1756094476392,0.34,113140.0,113130.0,0.09502476]
[1756094476601,1.05762907,113150.0,113130.0,0.09613006]
[1756094476842,1.39762847,113150.0,113140.0,0.08994475]
[1756094477046,0.88087196,113150.0,113140.0,0.09202475]
[1756094477474,1.22087196,113150.0,113140.0,0.09312976]
[1756094477682,1.22087196,113150.0,113140.0,0.09202475]
[1756094478148,1.05761335,113160.0,113140.0,0.09312976]
[1756094478338,0.88087196,113160.0,113140.0,0.0911744]
[1756094478557,0.88087196,113160.0,113150.0,0.00306]
[1756094478764,0.88087196,113160.0,113150.0,0.09202475]
[1756094478971,1.22087196,113160.0,113150.0,0.09202475]
[1756094479879,1.22187196,113160.0,113150.0,0.09202475]
[1756094480117,0.341,113160.0,113150.0,0.09312946]
[1756094480330,0.001,113160.0,113150.0,0.0942342]
[1756094481178,0.88087196,113170.0,113150.0,0.0942342]
[1756094481405,1.22087196,113170.0,113160.0,0.08688475]
[1756094481639,1.22087196,113170.0,113160.0,0.09202475]
[1756094481858,0.34,113170.0,113160.0,0.09202475]
[1756094482086,1.22087196,113170.0,113160.0,0.09202475]
[1756094482521,0.88087196,113180.0,113160.0,0.09202475]
[1756094482743,0.88087196,113180.0,113170.0,0.00526906]
[1756094482958,1.05763971,113190.0,113170.0,0.09312888]
[1756094483184,1.05763971,113190.0,113180.0,0.08688475]
[1756094483416,1.05763971,113190.0,113180.0,0.09202475]
[1756094483626,1.39763971,113190.0,113180.0,0.09312859]
[1756094484054,1.39763971,113190.0,113180.0,0.09227249]
[1756094484238,1.39763971,113190.0,113180.0,0.09116865]
[1756094484478,1.39763971,113190.0,113180.0,0.09227249]
[1756094484720,0.51676775,113190.0,113180.0,0.09016865]
[1756094484959,1.39763971,113190.0,113180.0,0.09016865]
[1756094485173,1.3941925,113190.0,113180.0,0.09016865]
[1756094485662,0.51332054,113190.0,113180.0,0.09016865]
[1756094485870,1.3941925,113190.0,113180.0,0.09016865]
[1756094486923,0.51332054,113190.0,113180.0,0.08710865]
[1756094487137,1.3941925,113190.0,113180.0,0.08710865]
[1756094487782,1.3941925,113190.0,113180.0,0.09127249]
[1756094487995,1.22087196,113190.0,113180.0,0.09127249]
[1756094488687,0.34,113190.0,113180.0,0.09127249]
[1756094488905,1.22087196,113190.0,113180.0,0.09127249]
[1756094489136,0.89470008,113200.0,113180.0,0.24523249]
[1756094489350,0.01382812,113200.0,113180.0,0.31217028]
[1756094489576,1.39755093,113200.0,113180.0,0.16127028]
[1756094489825,1.39755093,113200.0,113180.0,0.31735915]
[1756094490024,1.39755093,113200.0,113180.0,0.31515028]
[1756094490497,1.39755093,113200.0,113190.0,0.00220867]
[1756094490703,1.39755093,113200.0,113190.0,0.08896475]
[1756094490911,1.39755093,113200.0,113190.0,0.09117342]
[1756094491335,0.51767897,113200.0,113190.0,0.09423342]
[1756094491553,1.39855093,113200.0,113190.0,0.09423342]
[1756094492602,1.39755093,113200.0,113190.0,0.09117342]
[1756094492808,1.39855093,113200.0,113190.0,0.09117342]
[1756094493489,1.40069093,113200.0,113190.0,0.24497342]
[1756094493700,1.40069093,113200.0,113190.0,0.24276475]
[1756094494124,1.40069093,113200.0,113190.0,0.08896475]
[1756094494322,1.40390093,113200.0,113190.0,0.24386829]
[1756094494524,1.40069093,113200.0,113190.0,0.24276475]
[1756094494744,0.51981897,113200.0,113190.0,0.24276475]
[1756094494938,1.40069093,113200.0,113190.0,0.24276475]
[1756094495362,1.42091287,113200.0,113190.0,0.24276475]
[1756094496633,0.001,113200.0,113190.0,0.24582475]
[1756094497292,0.001,113200.0,113190.0,0.4225188]
[1756094498122,0.9010939,113210.0,113190.0,0.4225188]
[1756094498374,0.9010939,113210.0,113200.0,0.08909323]
[1756094498579,0.9010939,113210.0,113200.0,0.08896475]
[1756094499214,1.07989673,113210.0,113200.0,0.08896475]
[1756094499606,0.9032339,113210.0,113200.0,0.08896475]
[1756094499942,0.9032339,113210.0,113200.0,0.08996475]
[1756094500749,0.53047403,113220.0,113200.0,0.09520323]
[1756094500982,0.9010939,113210.0,113200.0,0.23536811]
[1756094501336,0.34,113220.0,113200.0,0.38573638]
[1756094501568,1.2410939,113220.0,113200.0,0.38573638]
[1756094501773,1.2410939,113220.0,113200.0,0.56241356]
[1756094501950,1.2410939,113220.0,113200.0,0.38473638]
[1756094502453,0.34,113220.0,113200.0,0.38473638]
[1756094502659,1.2420939,113220.0,113200.0,0.38473638]
[1756094502861,1.2452239,113220.0,113200.0,0.38473638]
[1756094503681,1.4218723,113220.0,113200.0,0.38473638]
[1756094503929,0.9010939,113210.0,113200.0,0.38573638]
[1756094504337,0.51977853,113220.0,113200.0,0.38569638]
[1756094504554,0.9010939,113210.0,113200.0,0.38569638]
[1756094504756,2.32409063,113210.0,113200.0,0.15584475]
[1756094504969,1.42299673,113210.0,113200.0,0.30948475]
[1756094505385,1.43932928,113210.0,113200.0,0.30948475]
[1756094505606,1.43932928,113210.0,113200.0,0.15684475]
[1756094505813,2.34042318,113210.0,113200.0,0.30948475]
[1756094506022,1.43932928,113210.0,113200.0,0.30948475]
[1756094506656,1.43932928,113210.0,113200.0,0.15584475]
[1756094506859,1.43932928,113210.0,113200.0,0.30948475]
[1756094507273,1.25742645,113210.0,113200.0,0.31460475]
[1756094507478,1.09469746,113220.0,113200.0,0.31460475]
[1756094507690,1.07986673,113210.0,113200.0,0.31157475]
[1756094507899,1.08299673,113210.0,113200.0,0.15484475]
[1756094508105,1.08387969,113210.0,113200.0,0.30848475]
[1756094508308,1.08399673,113210.0,113200.0,0.30848475]
[1756094508518,1.08399673,113210.0,113200.0,0.15484475]
[1756094508729,1.09935364,113210.0,113200.0,0.30848475]
[1756094509551,1.09935364,113210.0,113200.0,0.30948475]
[1756094510404,1.08299673,113210.0,113200.0,0.30948475]
[1756094510607,1.0993654,113210.0,113200.0,0.30948475]
[1756094513951,0.92270257,113210.0,113200.0,0.30948475]
[1756094514152,0.01636867,113210.0,113200.0,0.31460475]
[1756094514361,0.91746257,113210.0,113200.0,0.31460475]
[1756094515021,0.91746257,113210.0,113200.0,0.31157475]
[1756094516765,0.01636867,113210.0,113200.0,0.31460475]
[1756094520172,0.01640189,113210.0,113200.0,0.31460475]
[1756094521402,0.91749579,113210.0,113200.0,0.15793475]
[1756094521618,0.91960579,113210.0,113200.0,0.31153475]
[1756094522770,0.91749579,113210.0,113200.0,0.31153475]
[1756094523205,0.91749579,113210.0,113200.0,0.31456475]
[1756094523426,0.01640189,113210.0,113200.0,0.50869221]
[1756094523928,0.9010939,113220.0,113200.0,0.67979384]
[1756094524180,0.91751024,113220.0,113210.0,0.00331134]
[1756094524390,0.01641634,113220.0,113210.0,0.09421303]
[1756094524604,0.91751024,113220.0,113210.0,0.09421303]
[1756094524818,0.91751024,113220.0,113210.0,0.09200475]
[1756094525678,0.91751024,113220.0,113210.0,0.08897475]
[1756094525895,0.91751024,113220.0,113210.0,0.24257475]
[1756094526737,0.01641634,113220.0,113210.0,0.24257475]
[1756094526938,0.91751024,113220.0,113210.0,0.24257475]
[1756094527359,0.9010939,113220.0,113210.0,0.24257475]
[1756094527576,0.35831606,113230.0,113210.0,0.24560475]
[1756094527811,0.9010939,113220.0,113210.0,0.15872]
[1756094528030,0.9010939,113220.0,113210.0,0.16092828]
[1756094528248,0.9010939,113220.0,113210.0,0.35504013]
[1756094528470,0.9010939,113220.0,113210.0,0.17616902]
[1756094528942,0.91627996,113230.0,113210.0,0.35283185]
[1756094529195,0.35695249,113250.0,113220.0,0.33766361]
[1756094529416,0.9010939,113240.0,113230.0,0.22368789]
[1756094529641,0.9010939,113240.0,113230.0,0.31034475]
[1756094529877,0.9010939,113240.0,113230.0,0.30934475]
[1756094530104,0.9062639,113240.0,113230.0,0.30934475]
[1756094530317,0.9062639,113240.0,113230.0,0.30736475]
[1756094530531,0.90674063,113240.0,113230.0,0.30736475]
[1756094531583,0.00047673,113240.0,113230.0,0.30934475]
[1756094531803,0.90157063,113240.0,113230.0,0.48896638]
[1756094532011,0.90157063,113240.0,113230.0,0.15578475]
[1756094532227,0.90369063,113240.0,113230.0,0.30934475]
[1756094532428,0.90157063,113240.0,113230.0,0.30934475]
[1756094532866,0.90157063,113240.0,113230.0,0.48797638]
[1756094533815,0.90369063,113240.0,113230.0,0.31334475]
[1756094536439,0.90369063,113240.0,113230.0,0.15978475]
[1756094536672,0.90674063,113240.0,113230.0,0.31334475]
[1756094537098,0.90369063,113240.0,113230.0,0.48997638]
[1756094537304,0.00047673,113240.0,113230.0,0.48997638]
[1756094537512,0.90157063,113240.0,113230.0,0.48997638]
[1756094538355,0.00047673,113240.0,113230.0,0.5104154]
[1756094538632,0.90157063,113240.0,113230.0,0.5104154]
[1756094539824,0.00047673,113240.0,113230.0,0.5104154]
[1756094540057,0.90157063,113240.0,113230.0,0.5104154]
[1756094542715,0.00047673,113240.0,113230.0,0.5104154]
[1756094542904,0.00047673,113240.0,113230.0,0.6104154]
[1756094543353,0.00047673,113240.0,113230.0,0.7104154]
[1756094544026,0.00047673,113240.0,113230.0,0.7084154]
[1756094544231,0.00047673,113240.0,113230.0,0.7114154]
[1756094544782,0.00047673,113240.0,113230.0,0.6114154]
[1756094545001,0.00047673,113240.0,113230.0,0.6094154]
[1756094545191,0.00047673,113240.0,113230.0,0.7094154]
[1756094545411,0.00047673,113240.0,113230.0,0.7124154]
[1756094545642,0.00047673,113240.0,113230.0,0.5588554]
[1756094545856,0.90674063,113240.0,113230.0,0.17725377]
[1756094546080,0.90674063,113240.0,113230.0,0.5073654]
[1756094546295,0.00564673,113240.0,113230.0,0.6073654]
[1756094546783,0.90674063,113240.0,113230.0,0.6073654]
[1756094547007,0.90674063,113240.0,113230.0,0.4538854]
[1756094547235,0.90674063,113240.0,113230.0,0.5073654]
[1756094547469,0.90674063,113240.0,113230.0,0.6073654]
[1756094547695,1.80783453,113240.0,113230.0,0.15980475]
[1756094547923,1.80783453,113240.0,113230.0,0.31328475]
[1756094548585,1.80783453,113240.0,113230.0,0.30728475]
[1756094549040,1.80783453,113240.0,113230.0,0.30828475]
[1756094549953,1.80783453,113240.0,113230.0,0.30928475]
[1756094552207,0.90674063,113240.0,113230.0,0.30928475]
[1756094552873,1.80783453,113240.0,113230.0,0.30928475]
[1756094553138,0.90674063,113240.0,113230.0,0.30928475]
[1756094553374,1.80783453,113240.0,113230.0,0.15580475]
[1756094553593,2.32445056,113240.0,113230.0,0.30928475]
[1756094553818,2.32445056,113240.0,113230.0,0.15580475]
[1756094554051,2.32445056,113240.0,113230.0,0.30928475]
[1756094554511,2.32445056,113240.0,113230.0,0.30924475]
[1756094555290,2.32445056,113240.0,113230.0,0.22236]
[1756094558498,2.32445056,113240.0,113230.0,0.002]
[1756094558724,2.4424621,113240.0,113230.0,0.002]
[1756094558961,2.4726756,113240.0,113230.0,0.002]
[1756094559195,2.4726756,113240.0,113230.0,0.001]
[1756094559429,2.4992316,113240.0,113230.0,0.001]
[1756094559653,0.17664723,113220.0,113210.0,0.22136]
[1756094559898,1.07982113,113220.0,113210.0,0.22136]
[1756094560715,1.42277113,113220.0,113210.0,0.22136]
[1756094562026,1.42277113,113220.0,113210.0,0.06792]
[1756094562215,1.42277113,113220.0,113210.0,0.22136]
[1756094564858,0.17666283,113210.0,113200.0,0.07110163]
[1756094565034,1.07775673,113210.0,113200.0,0.31661638]
[1756094565494,1.07983673,113210.0,113200.0,0.31661638]
[1756094565905,1.07983673,113210.0,113200.0,0.31142638]
[1756094566131,1.07983673,113210.0,113200.0,0.31761638]
[1756094566372,1.07983673,113210.0,113200.0,0.31438638]
[1756094566578,1.07983673,113210.0,113200.0,0.31761638]
[1756094566747,1.07983673,113210.0,113200.0,0.31538638]
[1756094566923,1.07983673,113210.0,113200.0,0.31342638]
[1756094567792,1.08278673,113210.0,113200.0,0.31342638]
[1756094567964,1.98388063,113210.0,113200.0,0.31342638]
[1756094568647,1.98093063,113210.0,113200.0,0.31342638]
[1756094569406,0.17874283,113210.0,113200.0,0.31538638]
[1756094569621,1.98093063,113210.0,113200.0,0.31538638]
[1756094569858,1.98093063,113210.0,113200.0,0.31861638]
[1756094570057,1.07983673,113210.0,113200.0,0.31342638]
[1756094570497,1.07983673,113210.0,113200.0,0.31861638]
[1756094570710,1.07775673,113210.0,113200.0,0.31861638]
[1756094571190,2.32388063,113210.0,113200.0,0.002]
[1756094571397,2.32388063,113210.0,113200.0,0.15544]
[1756094571817,2.32388063,113210.0,113200.0,0.002]
[1756094572025,2.32388063,113210.0,113200.0,0.15544]
[1756094572229,2.32388063,113210.0,113200.0,0.15444]
[1756094572444,0.17669405,113190.0,113180.0,0.06792]
[1756094572645,1.07986795,113190.0,113180.0,0.30824475]
[1756094573342,1.11901512,113190.0,113180.0,0.30824475]
[1756094573543,1.11901512,113190.0,113180.0,0.15676475]
[1756094573758,1.11901512,113190.0,113180.0,0.31072148]
[1756094575569,1.11901512,113190.0,113180.0,0.15928148]
[1756094576035,1.11901512,113190.0,113180.0,0.31272148]
[1756094576681,1.11901512,113190.0,113180.0,0.07239673]
[1756094576835,1.11901512,113190.0,113180.0,0.22583673]
[1756094577409,1.11901512,113190.0,113180.0,0.22779673]
[1756094577621,1.11693512,113190.0,113180.0,0.31791148]
[1756094577844,0.21584122,113190.0,113180.0,0.31791148]
[1756094578054,1.11693512,113190.0,113180.0,0.31791148]
[1756094578489,1.11891512,113190.0,113180.0,0.31791148]
[1756094579138,1.11891512,113190.0,113180.0,0.31391148]
[1756094579360,1.11891512,113190.0,113180.0,0.31591148]
[1756094580460,0.94024107,113190.0,113180.0,0.31591148]
[1756094580687,0.03914717,113190.0,113180.0,0.31591148]
[1756094580931,0.94024107,113190.0,113180.0,0.49262114]
[1756094581210,0.9010939,113190.0,113180.0,0.51918014]
[1756094581428,0.9010939,113190.0,113180.0,0.60773079]
[1756094581681,0.52547959,113220.0,113180.0,0.61656627]
[1756094581682,0.9010939,113200.0,113180.0,0.61656627]
[1756094581925,0.18853655,113230.0,113200.0,0.17667844]
[1756094581926,0.9010939,113210.0,113200.0,0.17667844]
[1756094582124,0.9010939,113210.0,113200.0,0.49325482]
[1756094582771,0.9010939,113220.0,113200.0,0.51953776]
[1756094582984,1.08654073,113240.0,113210.0,0.15484475]
[1756094583195,0.34220937,113230.0,113220.0,0.1534]
[1756094583399,0.34,113230.0,113220.0,0.24547475]
[1756094583859,0.51663163,113230.0,113220.0,0.24547475]
[1756094584078,0.51871163,113230.0,113220.0,0.24028475]
[1756094584287,0.17664723,113220.0,113210.0,0.06796]
[1756094584502,0.17664723,113220.0,113210.0,0.30872148]
[1756094584503,1.08083113,113220.0,113210.0,0.30872148]
[1756094584937,1.07982113,113220.0,113210.0,0.30872148]
[1756094585154,1.07982113,113220.0,113210.0,0.15532148]
[1756094585355,1.08083113,113220.0,113210.0,0.22183673]
[1756094585578,1.08383113,113220.0,113210.0,0.22183673]
[1756094585999,1.08083113,113220.0,113210.0,0.22183673]
[1756094586206,1.08183113,113220.0,113210.0,0.06843673]
[1756094586438,1.08283113,113220.0,113210.0,0.22183673]
[1756094587814,1.08182113,113220.0,113210.0,0.22183673]
[1756094588225,1.09564485,113220.0,113210.0,0.22183673]
[1756094588435,1.09564485,113220.0,113210.0,0.22702673]
[1756094588641,1.09356485,113220.0,113210.0,0.22702673]
[1756094589088,0.9030939,113220.0,113210.0,0.31391148]
[1756094589315,0.9030939,113220.0,113210.0,0.49057431]
[1756094589568,0.002,113220.0,113210.0,0.49057431]
[1756094589844,0.002,113220.0,113210.0,0.50802333]
[1756094590263,0.001,113220.0,113210.0,0.50802333]
[1756094590502,0.9020939,113220.0,113210.0,0.50802333]
[1756094590922,0.001,113220.0,113210.0,0.50802333]
[1756094591134,0.9020939,113220.0,113210.0,0.50802333]
[1756094591349,0.9020939,113220.0,113210.0,0.38117433]
[1756094591604,0.92004301,113230.0,113210.0,0.3578715]
[1756094591815,0.92004301,113230.0,113220.0,0.08688475]
[1756094592029,0.92004301,113230.0,113220.0,0.09205475]
[1756094592877,0.92004301,113230.0,113220.0,0.08688475]
[1756094592878,0.92299301,113230.0,113220.0,0.08688475]
[1756094593085,0.92299301,113230.0,113220.0,0.24231475]
[1756094593299,0.92199301,113230.0,113220.0,0.24541475]
[1756094593719,0.92199301,113230.0,113220.0,0.09205475]
[1756094593945,0.92199301,113230.0,113220.0,0.24541475]
[1756094594570,0.88135218,113230.0,113220.0,0.24541475]
[1756094594779,0.88040218,113230.0,113220.0,0.09205475]
[1756094594990,0.88040218,113230.0,113220.0,0.24537475]
[1756094595118,0.001,113230.0,113220.0,0.24537475]
[1756094595347,0.88236218,113230.0,113220.0,0.09205475]
[1756094595555,0.88236218,113230.0,113220.0,0.24537475]
[1756094596311,0.88040218,113230.0,113220.0,0.24537475]
[1756094599655,0.001,113230.0,113220.0,0.24537475]
[1756094599865,0.88040218,113230.0,113220.0,0.24537475]
[1756094600073,1.05703381,113230.0,113220.0,0.09205475]
[1756094600337,1.05703381,113230.0,113220.0,0.24533475]
[1756094600535,0.88040218,113230.0,113220.0,0.24533475]
[1756094600734,1.05703381,113230.0,113220.0,0.24533475]
[1756094600967,0.88045218,113230.0,113220.0,0.24533475]
[1756094601837,1.05708381,113230.0,113220.0,0.24016475]
[1756094602045,0.17664723,113220.0,113210.0,0.06843673]
[1756094602254,1.05911941,113220.0,113210.0,0.15532148]
[1756094602456,1.05911941,113220.0,113210.0,0.30860148]
[1756094602901,1.05612941,113220.0,113210.0,0.30860148]
[1756094603311,1.05612941,113220.0,113210.0,0.30960148]
[1756094604145,8e-05,113220.0,113210.0,0.15632148]
[1756094604358,0.88169155,113220.0,113210.0,0.30960148]
[1756094604573,0.87948218,113220.0,113210.0,0.30960148]
[1756094606700,0.87948218,113220.0,113210.0,0.31167148]
[1756094607396,0.87948218,113220.0,113210.0,0.15839148]
[1756094607634,1.05612941,113220.0,113210.0,0.30956148]
[1756094608996,0.17672723,113220.0,113210.0,0.31163148]
[1756094609192,1.05612941,113220.0,113210.0,0.31163148]
[1756094609406,1.05612941,113220.0,113210.0,0.30956148]
[1756094610076,1.05612941,113220.0,113210.0,0.15632148]
[1756094610313,1.05612941,113220.0,113210.0,0.30956148]
[1756094610531,0.87948218,113220.0,113210.0,0.30956148]
[1756094610737,0.87948218,113220.0,113210.0,0.31473148]
[1756094611357,0.90092069,113220.0,113210.0,0.31473148]
[1756094612238,0.90092069,113220.0,113210.0,0.30956148]
[1756094612239,1.07756792,113220.0,113210.0,0.30956148]
[1756094613542,1.07756792,113220.0,113210.0,0.31163148]
[1756094613674,0.90092069,113220.0,113210.0,0.31163148]
[1756094614043,0.90092069,113220.0,113210.0,0.31473148]
[1756094614227,0.90092069,113220.0,113210.0,0.30956148]
[1756094614442,1.07756792,113220.0,113210.0,0.30956148]
[1756094614648,1.07756792,113220.0,113210.0,0.31163148]
[1756094614817,0.90092069,113220.0,113210.0,0.31163148]
[1756094614991,0.90092069,113220.0,113210.0,0.31473148]
[1756094616519,0.90092069,113220.0,113210.0,0.33244148]
[1756094616759,0.90092069,113220.0,113210.0,0.31473148]
[1756094616957,1.07756792,113220.0,113210.0,0.31473148]
[1756094617138,1.07756792,113220.0,113210.0,0.30956148]
[1756094617336,1.07756792,113220.0,113210.0,0.15632148]
[1756094617550,2.32146861,113220.0,113210.0,0.06943673]
[1756094617753,2.32146861,113220.0,113210.0,0.22263673]
[1756094617959,2.32146861,113220.0,113210.0,0.15467673]
[1756094618338,1.42062792,113220.0,113210.0,0.15467673]
[1756094618544,2.32146861,113220.0,113210.0,0.15467673]
[1756094619233,2.47466861,113220.0,113210.0,0.00147673]
[1756094619744,2.50122861,113220.0,113210.0,0.00147673]
[1756094620211,2.58811336,113220.0,113210.0,0.00147673]
[1756094620472,2.58811336,113220.0,113210.0,0.00047673]
[1756094620719,2.59311336,113220.0,113210.0,0.00047673]
[1756094621183,2.60493871,113220.0,113210.0,0.00047673]
[1756094621444,2.45173871,113220.0,113210.0,0.00047673]
[1756094621670,2.58811336,113220.0,113210.0,0.00047673]
[1756094621908,2.59611336,113220.0,113210.0,0.00047673]
[1756094623074,7.33369646,113220.0,113210.0,0.00047673]
[1756094623290,7.31730636,113220.0,113210.0,0.00047673]
[1756094624103,7.33113288,113220.0,113210.0,0.00047673]
[1756094624518,7.34750573,113220.0,113210.0,0.00047673]
[1756094624749,7.34750573,113220.0,113180.0,0.07110163]
[1756094624750,0.51669405,113190.0,113180.0,0.07110163]
[1756094624957,1.57073474,113190.0,113180.0,0.07124553]
[1756094625187,1.57271474,113190.0,113180.0,0.07124553]
[1756094625397,1.57576474,113190.0,113180.0,0.07124553]
[1756094626051,2.56349018,113190.0,113180.0,0.07124553]
[1756094627914,2.56549018,113190.0,113180.0,0.07124553]
[1756094628564,2.59406018,113190.0,113180.0,0.07124553]
[1756094630755,2.59406018,113190.0,113180.0,0.0001439]
[1756094633751,2.63397548,113190.0,113180.0,0.0001439]
[1756094634168,2.64780452,113190.0,113180.0,0.0001439]
[1756094635099,2.49460452,113190.0,113180.0,0.0001439]
[1756094635302,2.64780452,113190.0,113180.0,0.0001439]
[1756094635721,2.64776452,113190.0,113180.0,0.0001439]
[1756094636811,2.64780452,113190.0,113180.0,0.0001439]
[1756094637579,0.84612314,113190.0,113180.0,0.0001439]
[1756094637914,2.64780452,113190.0,113180.0,0.0001439]
[1756094638114,2.66412502,113190.0,113180.0,0.0001439]
[1756094638538,2.50787502,113190.0,113180.0,0.0001439]
[1756094638749,1.62843908,113190.0,113180.0,0.0054839]
[1756094639130,2.62119452,113190.0,113180.0,0.0001439]
[1756094639329,1.71730383,113190.0,113180.0,0.0001439]
[1756094640063,1.71730383,113190.0,113180.0,0.0022839]
[1756094640407,1.71730383,113190.0,113180.0,0.0054839]
[1756094640613,1.71532383,113190.0,113180.0,0.0054839]
[1756094640860,1.62847908,113190.0,113180.0,0.0054839]
[1756094641066,1.62843908,113190.0,113180.0,0.0054839]
[1756094641270,1.61461004,113190.0,113180.0,0.0054839]
[1756094641478,1.12145004,113190.0,113180.0,0.0054839]
[1756094642518,1.46145004,113190.0,113180.0,0.0054839]
[1756094643144,0.94475599,113190.0,113180.0,0.09236865]
[1756094643596,0.90484069,113190.0,113180.0,0.16347028]
[1756094644053,0.004,113190.0,113180.0,0.16347028]
[1756094644303,0.002,113190.0,113180.0,0.16347028]
[1756094644791,0.002,113190.0,113180.0,0.16447028]
[1756094645006,0.90084069,113200.0,113180.0,0.16447028]
[1756094645223,0.33868156,113210.0,113190.0,0.08688475]
[1756094645434,0.90084069,113200.0,113190.0,0.09008475]
[1756094645689,0.90084069,113200.0,113190.0,0.08688475]
[1756094645898,0.90084069,113200.0,113190.0,0.08902475]
[1756094646110,0.90084069,113200.0,113190.0,0.09222475]
[1756094647149,0.90084069,113200.0,113190.0,0.09622475]
[1756094647360,0.94100716,113200.0,113190.0,0.09622475]
[1756094648614,1.1176856,113200.0,113190.0,0.09622475]
[1756094653578,0.94100716,113200.0,113190.0,0.09622475]
[1756094654006,1.1176856,113200.0,113190.0,0.09622475]
[1756094655921,1.1176856,113200.0,113190.0,0.24930475]
[1756094656320,1.1176856,113200.0,113190.0,0.09622475]
[1756094658749,0.04016647,113200.0,113190.0,0.09843342]
[1756094658958,0.90084069,113200.0,113190.0,0.09843342]
[1756094659167,1.24084069,113210.0,113190.0,0.09843342]
[1756094659368,1.24084069,113210.0,113200.0,0.15304]
[1756094659598,1.24084069,113210.0,113200.0,0.15799]
[1756094660006,1.41750352,113210.0,113200.0,0.15799]
[1756094661149,1.41750352,113210.0,113200.0,0.15899]
[1756094661554,1.41950352,113210.0,113200.0,0.15899]
[1756094661997,1.45906956,113210.0,113200.0,0.15899]
[1756094663342,1.45906956,113210.0,113200.0,0.00595]
[1756094663508,1.45906956,113210.0,113200.0,0.15895]
[1756094665617,1.28240673,113210.0,113200.0,0.15895]
[1756094665820,1.28040673,113210.0,113200.0,0.15895]
[1756094667091,0.03956604,113210.0,113200.0,0.24804323]
[1756094667298,1.24084069,113220.0,113200.0,0.49361479]
[1756094667519,1.24084069,113220.0,113210.0,0.09204303]
[1756094667730,0.90084069,113220.0,113210.0,0.09183475]
[1756094668372,0.90184069,113220.0,113210.0,0.09183475]
[1756094669014,0.90084069,113220.0,113210.0,0.09183475]
[1756094669248,0.90084069,113220.0,113210.0,0.24483475]
[1756094669249,0.90184069,113220.0,113210.0,0.24483475]
[1756094669688,1.08048792,113220.0,113210.0,0.08688475]
[1756094669903,1.08048792,113220.0,113210.0,0.23984475]
[1756094671006,1.07948792,113220.0,113210.0,0.23984475]
[1756094671259,0.94400802,113220.0,113210.0,0.24479475]
[1756094671726,0.94300802,113220.0,113210.0,0.24479475]
[1756094671962,1.11965525,113220.0,113210.0,0.23984475]
[1756094672715,1.11965525,113220.0,113210.0,0.24579475]
[1756094672921,1.11965525,113220.0,113210.0,0.09283475]
[1756094673125,1.11965525,113220.0,113210.0,0.24879475]
[1756094675757,0.94100802,113220.0,113210.0,0.24879475]
[1756094676844,1.07748792,113220.0,113210.0,0.24879475]
[1756094677558,0.90084069,113220.0,113210.0,0.24879475]
[1756094677766,0.13373892,113230.0,113210.0,0.24879475]
[1756094677977,0.13373892,113230.0,113210.0,0.65380475]
[1756094677978,0.90305006,113230.0,113210.0,0.65380475]
[1756094678197,1.08628854,113240.0,113220.0,0.00295]
[1756094678384,0.00220937,113230.0,113220.0,0.08983475]
[1756094678511,0.00220937,113230.0,113220.0,0.24471475]
[1756094679177,0.178841,113230.0,113220.0,0.24471475]
[1756094679381,1.07751998,113230.0,113220.0,0.24471475]
[1756094680135,1.07966998,113230.0,113220.0,0.23976475]
[1756094680341,1.07966998,113230.0,113220.0,0.24076475]
[1756094680566,1.42057998,113230.0,113220.0,0.15388]
[1756094680785,1.57345998,113230.0,113220.0,0.001]
[1756094685811,1.58988211,113230.0,113220.0,0.001]
[1756094686682,2.58376661,113230.0,113220.0,0.001]
[1756094686904,7.31317151,113230.0,113220.0,0.001]
[1756094687112,7.33062053,113230.0,113220.0,1e-08]
[1756094687321,7.31419854,113230.0,113220.0,1e-08]
[1756094687533,7.33062334,113230.0,113220.0,1e-08]
[1756094687741,7.43640856,113230.0,113220.0,1e-08]
[1756094687955,7.43739514,113230.0,113220.0,1e-08]
[1756094688380,7.43739592,113230.0,113220.0,1e-08]
[1756094688802,0.51669405,113190.0,113180.0,0.07110163]
[1756094689008,1.57252474,113190.0,113180.0,0.07110163]
[1756094689427,1.57541474,113190.0,113180.0,0.07110163]
[1756094690010,1.57541474,113190.0,113180.0,0.07124553]
[1756094690218,1.61253556,113190.0,113180.0,0.07124553]
[1756094690831,1.61253556,113190.0,113180.0,0.07324553]
[1756094691035,1.61253556,113190.0,113180.0,0.07424553]
[1756094691867,1.69942031,113190.0,113180.0,0.07424553]